bitfinex-derivatives/quotes_ETHF0:USTF0_20250331
["timestamp","ask_amount","ask_price","bid_price","bid_amount"]
[1743442290000,6.20269,1840.5,1840.4,2.5258]
[1743442291006,6.20269,1840.5,1840.4,1.439]
[1743442291706,6.20269,1840.5,1840.4,2.5258]
[1743442291901,6.20264,1840.5,1840.4,2.5258]
[1743442292799,1.4279,1840.5,1840.4,2.5258]
[1743442293000,3.91335992,1840.9,1840.5,1.08674]
[1743442293207,1.3584,1840.8,1840.7,1.08659]
[1743442293508,1.08663,1840.7,1840.6,1.4148]
[1743442294099,1.08663,1840.7,1840.5,1.0867]
[1743442294100,1.08668,1840.6,1840.5,1.0867]
[1743442295202,1.08674,1840.5,1840.4,1.4148]
[1743442295507,2.50234,1840.5,1840.4,2.5016]
[1743442296902,1.4156,1840.5,1840.4,2.5016]
[1743442297104,2.50234,1840.5,1840.4,2.5016]
[1743442298105,2.50234,1840.5,1840.4,1.4148]
[1743442298302,1.0868,1840.4,1840.3,1.81766992]
[1743442298504,2.527,1840.4,1840.3,1.81766992]
[1743442299003,2.527,1840.4,1840.3,0.73085992]
[1743442299205,2.527,1840.4,1840.3,0.00815992]
[1743442299504,2.527,1840.4,1840.3,1.09501992]
[1743442299704,1.4402,1840.4,1840.3,1.09501992]
[1743442300100,2.527,1840.4,1840.3,1.09501992]
[1743442301710,1.4402,1840.4,1840.3,1.09501992]
[1743442301900,7.5956,1840.6,1840.3,3.21595992]
[1743442301901,1.08672,1840.6,1840.3,3.21595992]
[1743442302104,1.08672,1840.6,1840.5,1.08668]
[1743442302600,2.59222,1840.6,1840.5,2.56438]
[1743442302802,2.59222,1840.6,1840.5,2.56444]
[1743442303112,2.59222,1840.6,1840.5,1.4777]
[1743442303513,2.59222,1840.6,1840.5,2.56444]
[1743442305212,1.5055,1840.6,1840.5,5.77224]
[1743442305413,0.00815992,1840.9,1840.8,1.08657]
[1743442305605,9.92e-06,1840.9,1840.8,4.29437]
[1743442305802,57.45912,1841.7,1840.8,4.29437]
[1743442305803,58.426,1841.7,1841.4,1.08616]
[1743442306011,1.3972,1841.6,1841.5,1.5054]
[1743442306210,1.3972,1841.6,1841.5,2.59155]
[1743442307508,2.48329,1841.6,1841.5,2.59155]
[1743442307704,1.3972,1841.6,1841.5,2.59155]
[1743442308115,2.48329,1841.6,1841.5,2.59155]
[1743442309815,2.48329,1841.6,1841.5,1.5054]
[1743442310311,1.08615,1841.5,1841.4,0.00815992]
[1743442310506,2.46405,1841.5,1841.4,1.09436992]
[1743442310708,2.46405,1841.5,1841.4,2.51636992]
[1743442312006,2.46405,1841.5,1841.4,0.00815992]
[1743442312315,5.67185,1841.5,1841.4,0.00815992]
[1743442313114,5.67185,1841.5,1841.4,1.09436992]
[1743442314006,6.13305,1841.5,1841.4,2.53156992]
[1743442314716,5.0469,1841.5,1841.4,2.53156992]
[1743442316517,1.3779,1841.5,1841.4,2.53156992]
[1743442317517,59.50223992,1841.7,1841.6,1.08609]
[1743442318018,55.83823992,1841.7,1841.6,1.08609]
[1743442318211,59.49823992,1841.7,1841.6,1.08609]
[1743442318407,1.08609,1841.6,1841.5,3.2381]
[1743442318710,2.58079,1841.6,1841.5,3.2381]
[1743442319018,1.4947,1841.6,1841.5,3.2381]
[1743442319518,2.58079,1841.6,1841.5,3.2381]
[1743442320719,1.4947,1841.6,1841.5,3.2381]
[1743442321319,1.09419992,1841.7,1841.6,1.08609]
[1743442321628,1.09419992,1841.7,1841.6,1.3818]
[1743442321806,1.08609,1841.6,1841.5,1.82142]
[1743442322012,2.55669,1841.6,1841.5,1.08612]
[1743442322214,1.08615,1841.5,1841.4,1.09431992]
[1743442322514,2.55675,1841.5,1841.4,1.09431992]
[1743442323018,2.55675,1841.5,1841.4,2.59221992]
[1743442323214,1.4706,1841.5,1841.4,2.59221992]
[1743442324820,2.55675,1841.5,1841.4,2.59221992]
[1743442325919,2.55675,1841.5,1841.4,1.09431992]
[1743442326322,5.76455,1841.5,1841.4,0.00815992]
[1743442326517,2.71566,1841.4,1841.0,0.69]
[1743442326713,2.71566,1841.4,1840.9,1.08647]
[1743442326714,1.08651,1841.0,1840.9,1.08647]
[1743442326916,3.2078,1841.1,1840.8,1.08652]
[1743442326917,1.08651,1840.9,1840.8,1.08652]
[1743442327618,2.54641,1840.9,1840.8,1.08652]
[1743442328918,1.4599,1840.9,1840.8,1.08652]
[1743442329214,2.54641,1840.9,1840.8,1.08652]
[1743442329421,4.3578,1841.3,1840.8,1.08652]
[1743442329618,1.4823,1841.0,1840.9,3.29341]
[1743442329815,2.56875,1841.0,1840.9,1.08651]
[1743442330015,3.27075,1841.0,1840.9,1.08651]
[1743442330518,1.08657,1840.8,1840.7,1.78305992]
[1743442330918,3.28946,1840.9,1840.8,1.08657]
[1743442332414,1.08657,1840.8,1840.7,0.00815992]
[1743442332610,2.56557,1840.8,1840.7,0.00815992]
[1743442334022,1.08681,1840.5,1840.4,1.08677]
[1743442334424,1.08674,1840.5,1840.4,1.08677]
[1743442334720,2.56574,1840.5,1840.4,1.08677]
[1743442335222,2.56574,1840.5,1840.4,2.54617]
[1743442335917,1.479,1840.5,1840.4,2.54617]
[1743442336118,2.56574,1840.5,1840.4,2.54617]
[1743442338517,2.56574,1840.5,1840.4,1.08677]
[1743442340324,3.24814,1840.5,1840.4,1.08677]
[1743442342019,1.0868,1840.4,1840.3,2.49185002]
[1743442342221,1.08704,1840.1,1839.8,2.71787]
[1743442342424,2.58459,1840.0,1839.9,2.49864]
[1743442342625,2.58459,1840.0,1839.9,1.08704]
[1743442343421,1.08717,1839.9,1839.8,1.08713]
[1743442343727,2.58467,1839.9,1839.8,1.08713]
[1743442343925,1.08716,1839.8,1839.7,1.4116]
[1743442344226,1.08727,1839.6,1839.5,3.89309]
[1743442344727,4.72425,1839.7,1839.6,1.08727]
[1743442344924,6.15545,1839.7,1839.6,1.08727]
[1743442346425,1.08727,1839.6,1839.5,3.89311]
[1743442346730,2.51847,1839.6,1839.5,3.89311]
[1743442347931,1.4312,1839.6,1839.5,3.89311]
[1743442348131,2.51847,1839.6,1839.5,3.89311]
[1743442348324,1.4312,1839.6,1839.5,3.89311]
[1743442349225,6.8388,1840.1,1840.0,1.08704]
[1743442349433,7.92578,1840.1,1840.0,1.08704]
[1743442349829,4.71798,1840.1,1840.0,1.08704]
[1743442350232,4.71798,1840.1,1840.0,2.50494]
[1743442350928,1.4089,1840.2,1840.1,1.08698]
[1743442351128,2.49583,1840.2,1840.0,1.4179]
[1743442351430,1.08727,1839.7,1839.6,1.08727]
[1743442351640,1.08727,1839.6,1839.5,3.22309]
[1743442351830,7.94806,1839.7,1839.6,1.08727]
[1743442353036,3.653,1839.7,1839.6,1.08727]
[1743442355128,3.653,1839.7,1839.6,2.54127]
[1743442356326,3.644,1839.8,1839.7,1.08722]
[1743442356529,3.644,1839.8,1839.7,3.27992]
[1743442356930,4.73116,1839.8,1839.7,3.27992]
[1743442357140,3.644,1839.8,1839.7,3.27992]
[1743442357433,3.644,1839.8,1839.7,4.02721344]
[1743442357836,3.644,1839.8,1839.7,3.27992]
[1743442358336,3.2078,1840.4,1840.2,1.08692]
[1743442358538,1.08695,1840.2,1840.1,1.08694]
[1743442359438,4.73094,1840.2,1840.1,1.08692]
[1743442359641,3.644,1840.2,1840.1,1.08692]
[1743442360032,3.644,1840.2,1840.1,1.78162]
[1743442360433,3.642,1840.3,1840.1,1.44283974]
[1743442360634,7.94064,1840.4,1840.3,1.08686]
[1743442362041,1.08686,1840.3,1840.2,2.50828]
[1743442362237,2.71729,1840.3,1839.9,1.81825]
[1743442362434,1.08698,1840.1,1840.0,0.7484991]
[1743442362734,1.08704,1840.0,1839.9,3.19195]
[1743442362940,1.08704,1840.0,1839.9,3.94085004]
[1743442363135,1.08704,1840.0,1839.9,1.83595004]
[1743442363336,1.0871,1839.9,1839.8,1.78182]
[1743442363540,2.4703,1839.9,1839.8,2.5307994]
[1743442365939,2.4703,1839.9,1839.8,0.7489794]
[1743442366441,3.8623,1839.9,1839.8,1.8361394]
[1743442367037,1.08716,1839.8,1839.7,1.08717]
[1743442367245,2.57586,1839.8,1839.7,1.83671531]
[1743442367447,6.21586,1839.8,1839.7,1.83671531]
[1743442367738,6.21586,1839.8,1839.7,0.74954531]
[1743442367937,1.08727,1839.6,1839.5,1.08729]
[1743442368133,1.08727,1839.6,1839.5,1.83704684]
[1743442368443,1.08727,1839.6,1839.5,3.03688547]
[1743442368639,1.4887,1839.7,1839.6,1.08727]
[1743442368640,2.57595,1839.7,1839.6,1.08727]
[1743442368846,2.57595,1839.7,1839.6,1.83702684]
[1743442369541,1.4887,1839.7,1839.6,1.83702684]
[1743442369745,2.57592,1839.7,1839.6,1.83702684]
[1743442369942,4.29468,1840.3,1839.6,1.94982156]
[1743442370146,1.4174,1840.1,1840.0,1.08704]
[1743442370440,1.4174,1840.1,1840.0,3.0366793]
[1743442370848,1.4174,1840.1,1840.0,3.03736334]
[1743442371237,1.4174,1840.1,1840.0,1.83716436]
[1743442371441,2.50438,1840.1,1840.0,1.83716436]
[1743442371643,2.50438,1840.1,1840.0,3.03779681]
[1743442371842,1.4174,1840.1,1840.0,3.03779681]
[1743442372547,1.4174,1840.1,1840.0,3.03778593]
[1743442372743,2.50438,1840.1,1840.0,3.03778593]
[1743442372939,2.50438,1840.1,1840.0,1.83716436]
[1743442373441,2.50438,1840.1,1840.0,1.8374838]
[1743442375944,1.4174,1840.1,1840.0,3.03824172]
[1743442376251,1.4174,1840.1,1840.0,1.8374838]
[1743442376545,1.4174,1840.1,1840.0,3.03822682]
[1743442376949,1.4174,1840.1,1840.0,3.03828529]
[1743442378241,1.4174,1840.1,1840.0,6.24608529]
[1743442378751,1.4174,1840.1,1840.0,4.29484]
[1743442379048,1.4174,1840.1,1840.0,6.24604062]
[1743442379346,3.639,1840.3,1840.2,1.08692]
[1743442379652,1.5049,1840.4,1840.3,1.08686]
[1743442379850,3.64515992,1840.6,1840.5,1.08674]
[1743442380042,3.64515992,1840.6,1840.5,1.83720178]
[1743442380750,3.64515992,1840.6,1840.5,1.83699683]
[1743442381048,4.73183992,1840.6,1840.5,1.83699683]
[1743442381251,1.08674,1840.5,1840.4,1.08675]
[1743442381441,2.54304,1840.5,1840.4,1.83705638]
[1743442382045,2.54304,1840.5,1840.4,1.83707668]
[1743442382239,2.54304,1840.5,1840.4,1.83707667]
[1743442382851,1.4563,1840.5,1840.4,1.83707667]
[1743442383846,4.6641,1840.5,1840.1,1.4822]
[1743442384049,3.2078,1840.3,1840.1,1.08697]
[1743442384256,1.08698,1840.1,1840.0,1.08699]
[1743442384546,1.08698,1840.1,1840.0,1.83712662]
[1743442385052,1.4882,1840.1,1840.0,1.83712662]
[1743442385651,2.57518,1840.1,1840.0,1.83712662]
[1743442385854,1.4882,1840.1,1840.0,1.83712662]
[1743442386054,2.57518,1840.1,1840.0,1.83712662]
[1743442386462,1.4882,1840.1,1840.0,1.83712662]
[1743442386755,2.57518,1840.1,1840.0,1.83712662]
[1743442387649,2.57518,1840.1,1840.0,0.75013662]
[1743442388253,1.0871,1839.9,1839.8,1.08712]
[1743442388458,1.0871,1839.9,1839.8,3.03797719]
[1743442388753,1.0871,1839.9,1839.8,3.03806906]
[1743442388953,2.5155,1839.9,1839.8,3.03806906]
[1743442389162,1.4284,1839.9,1839.8,3.03806906]
[1743442389359,2.5155,1839.9,1839.8,4.45966906]
[1743442389950,1.4284,1839.9,1839.8,4.45966906]
[1743442390245,1.4284,1839.9,1839.8,4.45970884]
[1743442390448,7.35398,1839.9,1839.4,2.7184]
[1743442390655,1.77762,1839.8,1839.7,1.08719]
[1743442390850,3.27982,1839.8,1839.7,1.83761247]
[1743442392558,2.1926,1839.8,1839.7,1.83761247]
[1743442392858,3.27976,1839.8,1839.7,1.83761247]
[1743442393858,2.1926,1839.8,1839.7,1.83761247]
[1743442394159,3.27976,1839.8,1839.7,1.83761247]
[1743442394456,3.27976,1839.8,1839.7,0.75042247]
[1743442394656,3.27976,1839.8,1839.7,1.08722]
[1743442395157,3.27976,1839.8,1839.7,1.83742506]
[1743442395355,3.27976,1839.8,1839.7,1.08722]
[1743442395757,3.27976,1839.8,1839.7,1.83735393]
[1743442396653,6.48756,1839.8,1839.7,1.08722]
[1743442397052,6.48756,1839.8,1839.7,1.83730866]
[1743442397853,6.48756,1839.8,1839.7,1.08722]
[1743442401166,1.5022,1839.8,1839.7,1.83726758]
[1743442401353,6.09725,1840.0,1839.9,1.0871]
[1743442401659,6.09724,1840.0,1839.9,1.83706305]
[1743442402257,6.09724,1840.0,1839.9,2.5202]
[1743442402560,6.09724,1840.0,1839.9,3.27018377]
[1743442403757,1.0871,1839.9,1839.8,2.55741]
[1743442404059,1.08716,1839.8,1839.7,1.08717]
[1743442404258,1.79846,1839.8,1839.7,1.83722535]
[1743442404559,3.17746,1839.8,1839.7,1.08717]
[1743442404955,3.17746,1839.8,1839.7,2.53237]
[1743442405663,3.17746,1839.8,1839.7,3.2823497]
[1743442405965,3.17746,1839.8,1839.7,3.28235102]
[1743442406260,3.17746,1839.8,1839.7,3.28233884]
[1743442408462,3.17746,1839.8,1839.7,2.19516884]
[1743442408665,3.17746,1839.8,1839.4,1.08734]
[1743442408666,1.08738,1839.5,1839.4,1.08734]
[1743442408863,1.08738,1839.5,1839.4,5.19255033]
[1743442409059,1.08738,1839.5,1839.4,2.90487633]
[1743442409365,1.08739,1839.4,1839.3,0.7251]
[1743442409559,5.00679,1839.4,1839.3,1.47531757]
[1743442410163,5.00679,1839.4,1839.3,1.47534061]
[1743442410458,5.00679,1839.4,1839.3,0.7251]
[1743442410664,1.79899,1839.4,1839.3,2.5625829]
[1743442411363,5.00679,1839.4,1839.3,0.7251]
[1743442412066,5.00679,1839.4,1839.3,1.47498847]
[1743442412267,1.08745,1839.3,1839.2,1.4532]
[1743442412564,6.15685,1839.3,1839.2,3.29088807]
[1743442413261,6.15685,1839.3,1839.2,3.99088807]
[1743442413462,6.15685,1839.3,1839.2,5.19143506]
[1743442413960,6.15685,1839.3,1839.2,1.45017807]
[1743442414159,1.08751,1839.2,1839.1,2.1906]
[1743442414363,5.73691,1839.2,1839.1,0.7503779]
[1743442414568,5.73691,1839.2,1838.5,9.706]
[1743442414569,1.08773,1838.9,1838.8,2.212]
[1743442414759,1.08773,1838.9,1838.8,4.0499031]
[1743442415263,2.52933,1838.9,1838.8,0.7501931]
[1743442415464,3.26813,1838.9,1838.8,0.7501931]
[1743442415768,3.26813,1838.9,1838.6,1.4208]
[1743442415769,1.08781,1838.7,1838.6,1.4208]
[1743442415969,4.69781,1838.7,1838.6,0.74981626]
[1743442416264,4.69781,1838.7,1838.5,1.4891]
[1743442416265,1.08787,1838.6,1838.5,1.4891]
[1743442416466,2.52947,1838.6,1838.5,1.4891]
[1743442416663,1.08798,1838.4,1838.3,1.4208]
[1743442416856,4.29578,1838.4,1838.3,1.4208]
[1743442417055,1.08813,1838.2,1838.1,0.7104]
[1743442417868,1.08816,1838.1,1838.0,0.7104]
[1743442418056,5.0132,1838.1,1838.0,3.24102]
[1743442418258,6.10136,1838.1,1838.0,3.24102]
[1743442418454,6.10136,1838.1,1838.0,2.1528]
[1743442418673,5.0132,1838.1,1838.0,3.24102]
[1743442420266,6.10136,1838.1,1838.0,2.1528]
[1743442420461,5.0132,1838.1,1838.0,3.24102]
[1743442420671,6.10136,1838.1,1838.0,3.24102]
[1743442420869,6.10136,1838.1,1838.0,2.1528]
[1743442421565,6.10136,1838.1,1838.0,3.24102]
[1743442421762,5.0132,1838.1,1838.0,3.24102]
[1743442422957,5.0132,1838.1,1837.0,3.2078]
[1743442422958,2.72095,1837.8,1837.0,3.2078]
[1743442423157,2.72095,1837.8,1837.1,0.7453935]
[1743442423158,3.2078,1837.6,1837.1,0.7453935]
[1743442423373,1.08854,1837.5,1837.1,1.4459]
[1743442423568,3.644,1837.4,1837.3,1.08862]
[1743442424058,6.0911,1837.4,1837.2,1.08866]
[1743442424267,1.08865,1837.3,1837.1,2.53461]
[1743442424566,2.4472,1837.2,1837.1,1.4459]
[1743442424768,2.4472,1837.2,1837.1,2.53465]
[1743442424959,2.4472,1837.2,1837.1,1.4459]
[1743442425164,1.3585,1837.2,1837.1,1.4459]
[1743442425369,2.4472,1837.2,1837.1,1.4459]
[1743442426172,4.5663,1837.2,1836.8,1.9574]
[1743442426470,1.08899,1836.7,1836.6,0.20778237]
[1743442426677,7.95779,1836.7,1836.6,0.20778237]
[1743442428278,3.658,1836.7,1836.6,0.20778237]
[1743442428569,4.74699,1836.7,1836.6,0.20778237]
[1743442428770,6.22539,1836.7,1836.6,0.20778237]
[1743442429071,5.1364,1836.7,1836.6,1.29683237]
[1743442429575,1.4784,1836.7,1836.6,1.29683237]
[1743442430474,5.1444,1836.7,1836.6,1.29683237]
[1743442430677,1.4784,1836.7,1836.6,1.29683237]
[1743442430971,6.23139,1836.7,1836.6,0.20778237]
[1743442431171,5.1424,1836.7,1836.6,1.29683237]
[1743442431675,1.08924,1836.3,1835.9,2.72367]
[1743442431870,1.08939,1836.1,1835.9,1.80102]
[1743442432172,4.673,1836.0,1835.5,5.932]
[1743442432371,3.694,1835.9,1835.8,1.08953]
[1743442432564,5.0934,1835.9,1835.8,1.08953]
[1743442432771,4.29725,1836.0,1835.9,1.08947]
[1743442432772,6.9028,1836.0,1835.9,1.08947]
[1743442432978,3.695,1836.0,1835.9,1.08947]
[1743442434773,5.0944,1836.0,1835.9,1.08947]
[1743442434970,6.18381,1836.0,1835.9,1.08947]
[1743442435170,5.0944,1836.0,1835.9,1.08947]
[1743442435773,5.0944,1836.0,1835.8,1.08948]
[1743442435979,6.18384,1836.0,1835.9,1.08947]
[1743442436680,5.0944,1836.0,1835.9,1.08947]
[1743442436880,6.18381,1836.0,1835.9,1.08947]
[1743442437179,5.0944,1836.0,1835.9,1.08947]
[1743442438073,3.21595992,1836.3,1836.0,1.08941]
[1743442438276,2.72338,1836.1,1835.5,3.2078]
[1743442438582,1.08957,1835.8,1835.7,1.08957]
[1743442438779,3.717,1835.8,1835.7,1.08957]
[1743442438974,6.27473,1835.8,1835.7,1.08957]
[1743442439178,5.1852,1835.8,1835.7,1.08957]
[1743442439375,6.27473,1835.8,1835.7,1.08957]
[1743442439781,6.27473,1835.8,1835.7,2.47977]
[1743442440080,5.1852,1835.8,1835.7,2.47977]
[1743442440382,1.08942,1836.0,1835.9,1.08942]
[1743442440576,6.27562,1836.0,1835.9,1.08942]
[1743442440777,6.27566,1836.0,1835.9,1.08947]
[1743442441475,6.27561,1836.0,1835.9,1.08947]
[1743442441779,6.27661,1836.0,1835.9,1.08947]
[1743442441978,1.4682,1836.0,1835.9,1.08947]
[1743442442176,1.08953,1835.8,1835.5,3.9310552]
[1743442442371,3.718,1836.0,1835.8,1.08953]
[1743442442372,2.54338,1835.9,1835.8,1.08953]
[1743442442972,1.08953,1835.8,1835.7,2.57693]
[1743442443172,2.54343,1835.8,1835.7,2.57693]
[1743442443377,1.4539,1835.8,1835.7,2.57693]
[1743442444282,4.13399,1836.2,1836.1,1.08935]
[1743442444283,6.9308,1836.2,1836.1,1.08935]
[1743442444483,8.02012,1836.2,1836.1,1.08935]
[1743442444689,6.9308,1836.2,1836.1,1.08935]
[1743442444981,0.00815992,1836.3,1836.2,1.08929]
[1743442445784,0.00815992,1836.3,1836.2,2.54119]
[1743442446379,0.00815992,1836.3,1836.1,3.9577]
[1743442446380,6.94795992,1836.3,1835.7,2.72394]
[1743442446679,1.08947,1835.9,1835.7,2.939]
[1743442446875,2.59833,1835.8,1835.7,2.939]
[1743442447286,2.59833,1835.8,1835.7,4.02858]
[1743442447577,3.2078,1835.9,1835.7,2.939]
[1743442447785,1.3716,1836.1,1836.0,1.08941]
[1743442447977,1.3716,1836.1,1836.0,2.57071]
[1743442448177,3.21595992,1836.3,1836.0,2.20981563]
[1743442448377,1.3716,1836.2,1836.1,2.57065]
[1743442448577,1.3716,1836.2,1836.1,3.31105]
[1743442448973,1.3716,1836.2,1836.1,4.04009129]
[1743442449197,1.3716,1836.2,1836.1,3.31105]
[1743442449582,1.3716,1836.2,1835.7,3.2078]
[1743442449787,4.2973,1835.9,1835.6,2.724]
[1743442449987,7.0078,1835.9,1835.8,1.08953]
[1743442450483,7.0078,1835.9,1835.8,1.82004908]
[1743442450678,7.0078,1835.9,1835.8,1.82008232]
[1743442450882,8.09727,1835.9,1835.8,2.50333]
[1743442451376,7.0078,1835.9,1835.8,3.23480509]
[1743442451580,3.8,1835.9,1835.8,3.23480509]
[1743442452182,3.9568,1836.1,1835.8,2.14527509]
[1743442452183,3.2078,1836.1,1835.8,2.14527509]
[1743442452484,7.0008,1836.1,1836.0,1.08941]
[1743442452689,3.793,1836.1,1836.0,1.82088509]
[1743442452988,3.793,1836.1,1836.0,3.23468509]
[1743442453988,3.793,1836.1,1836.0,3.23651717]
[1743442454483,7.0008,1836.1,1835.3,3.2078]
[1743442454685,2.57927,1836.0,1835.6,2.72412]
[1743442454884,2.57927,1836.0,1835.9,1.08947]
[1743442455485,1.4898,1836.0,1835.9,1.08947]
[1743442455686,0.7542,1836.0,1835.8,3.16587]
[1743442455993,0.7542,1836.0,1835.8,1.0895]
[1743442455994,4.29734,1835.9,1835.8,1.0895]
[1743442456190,1.08967,1835.7,1835.6,1.08961]
[1743442456392,1.08965,1835.7,1835.6,1.08961]
[1743442456698,1.08964,1835.7,1835.6,1.0896]
[1743442458295,4.5376,1835.8,1835.7,1.08958]
[1743442458296,5.62716,1835.8,1835.7,1.08958]
[1743442459989,1.08976,1835.4,1835.3,3.2078]
[1743442460291,9.73722,1835.4,1835.0,1.4988]
[1743442460492,3.2078,1835.2,1835.0,1.4988]
[1743442460683,4.29773,1835.2,1835.1,1.08994]
[1743442461285,1.08994,1835.1,1835.0,2.58875]
[1743442461491,4.29772,1835.2,1835.1,1.08994]
[1743442461687,1.08992,1835.2,1835.0,1.4988]
[1743442461888,4.15532992,1835.3,1835.0,1.08999]
[1743442462094,1.08999,1835.1,1835.0,1.08999]
[1743442462298,1.09,1835.0,1834.9,0.02067398]
[1743442462495,9.77067,1835.1,1834.5,2.72573]
[1743442462689,1.09002,1835.0,1834.9,1.09004]
[1743442462993,7.0458,1835.1,1834.6,4.63681462]
[1743442462994,7.0458,1835.1,1834.8,1.09007]
[1743442463293,7.0458,1835.1,1834.7,1.4421]
[1743442463490,1.09009,1834.9,1834.8,1.09012]
[1743442463688,1.09012,1834.8,1834.7,1.4421]
[1743442463889,1.09012,1834.8,1834.7,2.53228]
[1743442463890,2.56502,1834.8,1834.7,2.53228]
[1743442464285,3.2078,1835.1,1835.0,1.09]
[1743442464590,1.4749,1835.1,1835.0,1.09]
[1743442464801,3.84515992,1835.3,1835.2,1.08988]
[1743442465090,3.84515992,1835.3,1835.2,4.29768]
[1743442465396,0.00815992,1835.3,1835.2,4.80752707]
[1743442465597,0.00815992,1835.3,1835.2,6.24962707]
[1743442465803,0.00815992,1835.3,1835.2,5.73978]
[1743442466004,0.00815992,1835.3,1835.2,6.24962383]
[1743442466493,0.00815992,1835.3,1835.2,6.97783585]
[1743442466693,3.9386,1835.7,1835.6,1.08964]
[1743442466888,3.9386,1835.7,1835.6,1.81785202]
[1743442466889,7.7726,1835.7,1835.6,1.81785202]
[1743442467196,4.92348,1835.9,1835.8,1.08953]
[1743442467497,3.834,1835.9,1835.8,1.81770199]
[1743442467795,1.3942,1836.0,1835.9,1.08947]
[1743442467993,1.50585992,1836.0,1835.9,3.18654199]
[1743442468791,3.2078,1836.5,1836.4,1.08917]
[1743442469095,4.29691,1836.5,1836.4,0.72817199]
[1743442469595,4.6985,1836.5,1836.4,1.81734199]
[1743442469794,5.78761,1836.5,1836.4,0.72817199]
[1743442471095,5.78761,1836.5,1836.4,1.08917]
[1743442471297,5.78761,1836.5,1836.4,0.727862]
[1743442471597,4.6985,1836.5,1836.4,1.817032]
[1743442471990,1.4907,1836.5,1836.4,1.817032]
[1743442472697,5.3457,1836.5,1836.4,1.817032]
[1743442473096,5.3457,1836.5,1836.4,1.81672035]
[1743442473696,5.3457,1836.5,1836.4,1.81654985]
[1743442474099,5.3457,1836.5,1836.4,2.56554985]
[1743442474302,1.4907,1836.5,1836.4,2.56554985]
[1743442474500,0.00815992,1836.6,1836.5,1.08911]
[1743442474697,0.00815992,1836.6,1836.5,3.25008985]
[1743442475098,1.49085992,1836.6,1836.5,3.24984768]
[1743442475302,1.49085992,1836.6,1836.5,2.52271]
[1743442475902,0.00815992,1836.6,1836.5,3.24972423]
[1743442476103,1e-08,1836.6,1836.5,3.24972423]
[1743442476401,5.3287,1836.9,1836.8,1.08893]
[1743442476797,1.4827,1836.9,1836.8,1.08893]
[1743442477195,3.2078,1837.2,1837.1,1.08875]
[1743442477499,1.4827,1837.2,1837.1,1.08875]
[1743442477693,5.3287,1837.2,1837.1,1.08875]
[1743442478496,1.4827,1837.2,1837.1,1.08875]
[1743442479301,2.72189,1837.1,1836.7,0.00815992]
[1743442479493,3.2078,1836.8,1836.1,1.4184]
[1743442479699,3.2078,1836.6,1836.1,2.9219]
[1743442479898,1.4853,1836.5,1836.3,1.08919]
[1743442480099,2.57442,1836.5,1836.3,1.08919]
[1743442480299,2.57442,1836.5,1836.2,2.59276]
[1743442480300,1.08919,1836.4,1836.2,2.59276]
[1743442480505,1.08919,1836.4,1836.3,1.08923]
[1743442480506,1.4853,1836.4,1836.3,1.08923]
[1743442480700,1.4853,1836.4,1836.2,1.5035]
[1743442480896,1.08927,1836.3,1836.1,1.83098992]
[1743442481102,1.3967,1836.2,1836.1,1.83098992]
[1743442481297,1.3967,1836.2,1836.1,0.00815992]
[1743442481503,2.48599,1836.2,1836.1,0.00815992]
[1743442482301,1.3967,1836.2,1836.1,1.09750992]
[1743442482611,1.3967,1836.2,1836.1,2.49050992]
[1743442484506,2.48599,1836.2,1836.1,2.49050992]
[1743442484705,2.48599,1836.2,1836.1,1.40115992]
[1743442485008,5.69379,1836.2,1836.1,0.00815992]
[1743442485212,8.89559,1836.2,1836.1,1e-08]
[1743442485412,9.57769,1836.2,1836.1,1e-08]
[1743442485711,7.07769,1836.2,1836.1,1e-08]
[1743442487026,9.57769,1836.2,1836.1,1e-08]
[1743442487729,7.07769,1836.2,1836.1,1e-08]
[1743442489121,10.93869,1836.2,1836.1,1e-08]
[1743442491630,10.92869,1836.2,1836.1,1e-08]
[1743442492632,7.07769,1836.2,1836.1,1e-08]
[1743442492830,10.92569,1836.2,1836.1,1e-08]
[1743442494133,9.1543,1836.2,1836.1,1.08935001]
[1743442494433,10.24359,1836.2,1836.1,1.08935001]
[1743442494826,9.54179,1836.2,1836.1,1.08935001]
[1743442495228,9.54179,1836.2,1836.1,2.47725001]
[1743442497523,9.54179,1836.2,1836.1,1e-08]
[1743442497729,10.26539,1836.2,1836.1,1.08935001]
[1743442498138,6.41739,1836.2,1836.1,2.49935001]
[1743442498728,6.41739,1836.2,1836.1,1.41000001]
[1743442498934,6.41739,1836.2,1836.1,1e-08]
[1743442499436,7.15579,1836.2,1836.1,1e-08]
[1743442505338,2.7243,1835.5,1835.0,2.72489]
[1743442505637,1.08994,1835.1,1835.0,0.7339]
[1743442506040,1.09,1835.0,1834.9,2.1696]
[1743442506230,4.2978,1835.0,1834.9,1.4585]
[1743442506426,5.0118,1835.0,1834.9,1.4585]
[1743442507237,3.9218,1835.0,1834.9,2.54856]
[1743442507443,5.0118,1835.0,1834.9,2.54856]
[1743442507637,6.5093,1835.0,1834.9,1.4585]
[1743442509440,1.09024,1834.6,1834.5,3.9012]
[1743442509643,1.09024,1834.6,1834.5,2.1171]
[1743442510035,1.4478,1834.6,1834.5,3.2074]
[1743442510238,8.12302,1834.7,1834.5,2.1171]
[1743442510540,3.825,1834.7,1834.6,1.09024]
[1743442510742,4.91522,1834.7,1834.5,3.20736]
[1743442510938,1.09024,1834.6,1834.5,2.1171]
[1743442511138,2.53804,1834.6,1834.5,2.1171]
[1743442511334,1.4478,1834.6,1834.5,3.2074]
[1743442511949,2.53804,1834.6,1834.5,2.1171]
[1743442512137,2.53804,1834.6,1834.5,3.2074]
[1743442512850,1.4478,1834.6,1834.5,3.2074]